fUSD/lending_fUSD_20240922
["ID","MTS","AMOUNT","RATE_DAILY","PERIOD"]
[338884496,1727007038767,-245000.0,0.00012659,2]
[338884497,1727007038777,-499.99,0.00012659,2]
[338884498,1727007038787,-351.07,0.00012659,2]
[338884499,1727007038796,-150.99,0.00012659,2]
[338884500,1727007038807,-301.54,0.00012659,2]
[338884501,1727007038816,-150.0,0.00012751,2]
[338884502,1727007038826,-150.0,0.0001276,2]
[338884503,1727007038836,-5456.53071094,0.00012764,2]
[338884504,1727007038845,-1500.0,0.00012841,2]
[338884505,1727007038856,-408.9014,0.00012849,2]
[338884506,1727007038865,-150.0,0.00012853,2]
[338884507,1727007038875,-382.641,0.00012856,2]
[338884508,1727007038885,-171.123,0.00012856,2]
[338884509,1727007038894,-150.0,0.00012856,2]
[338884510,1727007038904,-150.0,0.00012863,2]
[338884511,1727007038913,-3645.00150052,0.0001287,2]
[338884512,1727007038923,-6276.66917415,0.0001287,2]
[338884513,1727007038933,-197.45493291,0.0001287,2]
[338884514,1727007038942,-500.0,0.00012876,2]
[338884515,1727007038952,-500.0,0.00012876,2]
[338884516,1727007038961,-500.0,0.00012876,2]
[338884517,1727007038971,-500.0,0.00012876,2]
[338884518,1727007038981,-500.0,0.00012876,2]
[338884519,1727007038990,-309.0806946,0.00012876,2]
[338884520,1727007039000,-500.0,0.00012876,2]
[338884521,1727007039010,-500.0,0.00012876,2]
[338884522,1727007039019,-196.72,0.00012876,2]
[338884523,1727007039028,-500.0,0.00012876,2]
[338884524,1727007039038,-209.82493842,0.00012876,2]
[338884525,1727007039048,-500.0,0.00012876,2]
[338884526,1727007039057,-500.0,0.00012876,2]
[338884527,1727007039066,-500.0,0.00012876,2]
[338884528,1727007039075,-540.28,0.00012876,2]
[338884529,1727007039085,-500.0,0.00012876,2]
[338884530,1727007039095,-500.0,0.00012876,2]
[338884531,1727007039104,-500.97331484,0.00012876,2]
[338884532,1727007039113,-360.31152246,0.00012876,2]
[338884533,1727007039123,-1000.0,0.00012877,2]
[338884534,1727007039132,-1000.0,0.00012877,2]
[338884535,1727007039142,-1000.0,0.00012877,2]
[338884536,1727007039151,-1000.0,0.00012877,2]
[338884537,1727007039161,-1000.0,0.00012877,2]
[338884538,1727007039172,-1000.0,0.00012877,2]
[338884539,1727007039182,-1000.0,0.00012877,2]
[338884540,1727007039192,-1000.0,0.00012877,2]
[338884541,1727007039201,-1000.0,0.00012877,2]
[338884542,1727007039211,-1000.0,0.00012877,2]
[338884543,1727007039220,-1000.0,0.00012877,2]
[338884544,1727007039230,-1000.0,0.00012877,2]
[338884545,1727007039239,-1000.0,0.00012877,2]
[338884546,1727007039249,-1000.0,0.00012877,2]
[338884547,1727007039258,-1054.19494477,0.00012877,2]
[338884548,1727007039268,-1000.0,0.00012877,2]
[338884549,1727007039278,-1000.0,0.00012877,2]
[338884550,1727007039288,-1000.0,0.00012877,2]
[338884551,1727007039297,-1000.0,0.00012877,2]
[338884552,1727007039307,-1000.0,0.00012877,2]
[338884553,1727007039316,-1000.0,0.00012877,2]
[338884554,1727007039326,-1000.0,0.00012877,2]
[338884555,1727007039335,-1000.0,0.00012877,2]
[338884556,1727007039345,-1000.0,0.00012877,2]
[338884557,1727007039355,-1000.0,0.00012877,2]
[338884558,1727007039364,-1000.0,0.00012877,2]
[338884559,1727007039373,-1000.0,0.00012877,2]
[338884560,1727007039382,-1000.0,0.00012877,2]
[338884561,1727007039392,-1000.0,0.00012877,2]
[338884562,1727007039401,-1000.0,0.00012877,2]
[338884563,1727007039410,-150.0,0.00012877,2]
[338884564,1727007039422,-553.0,0.00012891,2]
[338884565,1727007039432,-1903.0,0.00012891,2]
[338884566,1727007039441,-3345.0,0.00012891,2]
[338884567,1727007039451,-276.036,0.00012891,2]
[338884568,1727007039460,-1913.0,0.00012891,2]
[338884569,1727007039470,-500.0,0.00012895,2]
[338884570,1727007039479,-500.0,0.00012896,2]
[338884571,1727007039489,-12103.331,0.000129,2]
[338884572,1727007039499,-5867.0,0.000129,2]
[338884573,1727007039509,-150.0,0.000129,2]
[338884574,1727007039518,-1147.0,0.000129,2]
[338884575,1727007039528,-1081.0,0.000129,2]
[338884576,1727007039537,-178.89715951,0.000129,2]
[338884577,1727007039561,-164.34819362,0.000129,2]
[338884578,1727007039573,-1647.9659,0.000129,2]
[338884580,1727007039585,-169.00379342,0.000129,2]
[338884582,1727007039595,-486.1,0.000129,2]
[338884584,1727007039604,-198.54068962,0.000129,2]
[338884585,1727007039614,-2818.15287756,0.000129,2]
[338884586,1727007039626,-150.0,0.00012923,2]
[338884587,1727007039635,-3731.33539879,0.00012968,10]
[338884588,1727007039646,-5456.53071094,0.00012968,2]
[338884589,1727007039656,-500.0,0.00012973,2]
[338884590,1727007039666,-529.97694791,0.00012973,2]
[338884591,1727007039675,-500.0,0.00012973,2]
[338884592,1727007039684,-500.0,0.00012973,2]
[338884593,1727007039694,-150.0,0.00012983,2]
[338884594,1727007039703,-219.97300897,0.00012986,2]
[338884595,1727007039713,-229.48651582,0.00012986,2]
[338884596,1727007039722,-245.31967874,0.00012986,2]
[338884597,1727007039732,-153.4,0.0001299,2]
[338884598,1727007039742,-164.67482093,0.0001299,2]
[338884599,1727007039752,-164.67482093,0.0001299,2]
[338884600,1727007039761,-153.4,0.0001299,2]
[338884601,1727007039771,-153.4,0.0001299,2]
[338884602,1727007039780,-153.4,0.0001299,2]
[338884603,1727007039790,-153.4,0.0001299,2]
[338884604,1727007039800,-153.4,0.0001299,2]
[338884605,1727007039810,-153.4,0.0001299,2]
[338884606,1727007039820,-153.4,0.0001299,2]
[338884607,1727007039829,-153.4,0.0001299,2]
[338884608,1727007039838,-153.4,0.0001299,2]
[338884609,1727007039848,-153.4,0.0001299,2]
[338884610,1727007039857,-153.4,0.0001299,2]
[338884611,1727007039866,-153.4,0.0001299,2]
[338884612,1727007039876,-153.4,0.0001299,2]
[338884613,1727007039886,-153.4,0.0001299,2]
[338884614,1727007039896,-153.4,0.0001299,2]
[338884615,1727007039906,-8004.573253,0.00012994,2]
[338884616,1727007039915,-253.1420243,0.00012994,2]
[338884617,1727007039926,-15146.57,0.00012999,2]
[338884618,1727007039936,-500.0,0.00012999,2]
[338884619,1727007039947,-500.0,0.00012999,2]
[338884620,1727007039956,-500.0,0.00012999,2]
[338884621,1727007039966,-500.0,0.00012999,2]
[338884622,1727007039978,-500.0,0.00012999,2]
[338884623,1727007039988,-500.0,0.00012999,2]
[338884624,1727007039998,-232.49904959,0.00012999,2]
[338884625,1727007040008,-500.0,0.00012999,2]
[338884626,1727007040017,-500.0,0.00012999,2]
[338884627,1727007040027,-500.0,0.00012999,2]
[338884628,1727007040036,-500.0,0.00012999,2]
[338884629,1727007040046,-500.0,0.00012999,2]
[338884630,1727007040055,-414.04,0.00012999,2]
[338884631,1727007040064,-500.0,0.00012999,2]
[338884632,1727007040073,-303.59,0.00012999,2]
[338884633,1727007040083,-15263.06,0.00013,2]
[338884634,1727007040092,-43191.75514675,0.00013,2]
[338884635,1727007040245,-804.984447,0.00013,2]
[338884636,1727007040256,-324.58299937,0.00013,2]
[338884637,1727007040267,-477.85701832,0.00013,2]
[338884638,1727007040296,-10903.20915914,0.00013,2]
[338884639,1727007040412,-1344.25561625,0.00013,2]
[338884650,1727007043607,-327.30108004,0.00013,2]
[338884651,1727007043620,-7540.12825954,0.00013,2]
[338884652,1727007043630,-23902.62343416,0.00013,2]
[338884656,1727007046376,-29085.28714238,0.00013,2]
[338884657,1727007046388,-874.79049941,0.00013,2]
[338884661,1727007068160,500.0,0.00011164,2]
[338884662,1727007303841,150.0,9.973e-05,2]
[338884663,1727007303864,150.0,9.973e-05,2]
[338884664,1727007303889,150.0,9.973e-05,2]
[338884665,1727007303912,22.85,9.973e-05,2]
[338884666,1727007310800,150.0,0.00011882,2]
[338884667,1727007417211,150.0,0.00011879,2]
[338884668,1727007417234,150.0,0.00011879,2]
[338884669,1727007417256,150.0,0.00011879,2]
[338884670,1727007417278,150.0,0.00011879,2]
[338884671,1727007417301,150.0,0.00011879,2]
[338884672,1727007417324,150.0,0.00011879,2]
[338884673,1727007417349,150.0,0.00011879,2]
[338884674,1727007417371,150.0,0.00011879,2]
[338884675,1727007417392,150.0,0.00011879,2]
[338884676,1727007417413,150.0,0.00011879,2]
[338884677,1727007417434,150.0,0.00011879,2]
[338884678,1727007417455,150.0,0.00011879,2]
[338884679,1727007417476,150.0,0.00011879,2]
[338884680,1727007417497,150.0,0.00011879,2]
[338884681,1727007417519,209.46443281,0.00011879,2]
[338884682,1727007417542,21590.53556719,0.00011879,2]
[338884683,1727007439479,150.0,0.00011862,2]
[338884684,1727007439500,18.64,0.00011862,2]
[338884685,1727007442814,131.36,0.00011164,2]
[338884686,1727007442839,150.0,0.00011164,2]
[338884687,1727007442860,218.64,0.00011164,2]
[338884688,1727007529919,57.18,0.00011164,2]
[338884689,1727007529942,150.0,0.00011164,2]
[338884690,1727007529963,150.0,0.00011164,2]
[338884691,1727007529984,142.82,0.00011164,2]
[338884692,1727007556536,7.18,0.00011164,2]
[338884693,1727007556557,200.0,0.00011164,2]
[338884694,1727007556580,150.0,0.00011164,2]
[338884695,1727007556602,142.82,0.00011164,2]
[338884696,1727007577907,7.18,0.00011787,2]
[338884697,1727007577930,196.14,0.00011787,2]
[338884698,1727007577952,150.0,0.00011787,2]
[338884699,1727007577973,150.0,0.00011787,2]
[338884700,1727007577994,200.0,0.00011787,2]
[338884701,1727007578021,8.68,0.00011787,2]
[338884702,1727007593544,178.41,0.00010959,2]
[338884703,1727007596850,250.0,0.00011787,2]
[338884704,1727007601771,500.0,0.00011164,2]
[338884705,1727007628332,500.0,0.00011164,2]
[338884706,1727007727957,500.0,0.00011164,2]
[338884707,1727007814673,526.16,9.866e-05,2]
[338884708,1727007820722,1050.0,0.00011,2]
[338884709,1727007822673,196.15,0.00011767,2]
[338884711,1727007836206,885.91,0.00011861,2]
[338884712,1727007905059,150.0,0.00011688,2]
[338884713,1727007905127,150.0,0.00012012,2]
[338884714,1727007908024,229.48651582,0.00011688,2]
[338884715,1727007915305,150.0,0.00011688,2]
[338884716,1727007925500,972.4662316,0.000108,2]
[338884717,1727007929563,579.94515437,0.000101,2]
[338884718,1727007940681,1020.0,0.00012031,2]
[338884719,1727007942919,5581.18,0.00011808,2]
[338884720,1727007954900,1338.44340786,6.94e-05,2]
[338884721,1727007962481,-526.16,0.0001213,2]
[338884722,1727007962501,-180.8,0.00012217,2]
[338884723,1727007962524,-150.0,0.00012337,2]
[338884724,1727007962546,-2314.04443281,0.0001235,2]
[338884725,1727007962566,-195.92,0.00012391,2]
[338884726,1727007962588,-150.0,0.00012458,2]
[338884727,1727007970242,-690.0699,0.00012459,2]
[338884728,1727007970264,-14168.88566719,0.00012459,2]
[338884729,1727007995875,174.43,0.00011895,2]
[338884730,1727008006771,500.0,0.0001189,2]
[338884736,1727008078729,833.94057283,0.0001,2]
[338884737,1727008090746,430.4,0.00011781,2]
[338884738,1727008114752,1019.16502729,0.00010998,2]
[338884743,1727008124446,42043.966595,0.0001,2]
[338884744,1727008140890,500.0,9.664e-05,2]
[338884745,1727008142473,500.0,0.00011034,2]
[338884751,1727008161710,500.0,8.568e-05,2]
[338884752,1727008163312,500.0,0.00011308,2]
[338884759,1727008231453,-3084.0,0.000121,3]
[338884760,1727008231462,-201.83967508,0.00012159,2]
[338884761,1727008231472,-4247.048963,0.000123,5]
[338884762,1727008231511,-447.27076932,0.000123,5]
[338884763,1727008231570,-344.19142609,0.000123,5]
[338884764,1727008231630,-6472.48884159,0.000123,5]
[338884765,1727008231642,-1800.0,0.000123,4]
[338884766,1727008231653,-3600.0,0.000124,4]
[338884767,1727008231662,-500.0,0.00012404,2]
[338884768,1727008231671,-34603.69403281,0.00012459,2]
[338884769,1727008231681,-5128.32545628,0.00012459,2]
[338884770,1727008231690,-5400.0,0.000125,4]
[338884771,1727008231700,-290.93023309,0.000125,2]
[338884772,1727008231709,-206.66,0.000125,2]
[338884773,1727008231719,-499.99,0.000125,2]
[338884774,1727008231729,-1728.77,0.00012534,2]
[338884775,1727008231739,-476.631,0.00012559,2]
[338884776,1727008231748,-196.6822,0.00012559,2]
[338884777,1727008231757,-11061.4653,0.00012559,2]
[338884779,1727008231767,-1000.0,0.00012559,2]
[338884781,1727008231776,-169912.5213,0.00012559,2]
[338884783,1727008231785,-7200.0,0.000126,4]
[338884785,1727008231795,-2500.0,0.0001261,2]
[338884787,1727008231804,-150.0,0.00012662,2]
[338884789,1727008231813,-5128.32545622,0.00012675,2]
[338884791,1727008231822,-9000.0,0.000127,4]
[338884793,1727008231831,-167.95739396,0.000127,2]
[338884795,1727008231840,-1500.0,0.00012733,2]
[338884797,1727008231850,-150.0,0.00012736,2]
[338884799,1727008231859,-167.95739396,0.00012767,2]
[338884801,1727008231869,-153.34,0.0001277,2]
[338884803,1727008231878,-2500.0,0.0001277,2]
[338884805,1727008231887,-227750.78115243,0.0001278,2]
[338884807,1727008231897,-150.0,0.00012793,2]
[338884809,1727008231907,-15699.90100675,0.000128,2]
[338884811,1727008231916,-1800.0,0.000128,4]
[338884813,1727008231925,-150.0,0.00012812,2]
[338884815,1727008231935,-150.0,0.00012833,2]
[338884817,1727008231944,-150.0,0.00012833,2]
[338884819,1727008231953,-167.95739396,0.00012833,2]
[338884821,1727008231963,-150.0,0.0001284,2]
[338884823,1727008231972,-324.04174288,0.00012848,2]
[338884825,1727008231982,-408.9014,0.00012849,2]
[338884827,1727008231991,-150.0,0.00012855,2]
[338884829,1727008232001,-150.0,0.0001286,2]
[338884831,1727008232010,-150.0,0.0001286,2]
[338884833,1727008232020,-365.61065435,0.0001286,2]
[338884835,1727008232029,-54052.91443658,0.0001287,2]
[338884837,1727008232038,-150.0,0.0001287,2]
[338884839,1727008232047,-166.66952,0.0001287,2]
[338884841,1727008232057,-9921.67067467,0.0001287,2]
[338884843,1727008232066,-113729.35251812,0.0001287,2]
[338884845,1727008232076,-500.0,0.00012876,2]
[338884847,1727008232085,-500.0,0.00012876,2]
[338884849,1727008232094,-500.0,0.00012876,2]
[338884850,1727008232103,-500.0,0.00012876,2]
[338884852,1727008232113,-500.0,0.00012876,2]
[338884854,1727008232123,-500.97331484,0.00012876,2]
[338884856,1727008232133,-360.31152246,0.00012876,2]
[338884858,1727008232145,-1000.0,0.00012877,2]
[338884860,1727008232154,-1000.0,0.00012877,2]
[338884862,1727008232164,-1000.0,0.00012877,2]
[338884864,1727008232174,-1000.0,0.00012877,2]
[338884866,1727008232183,-1000.0,0.00012877,2]
[338884868,1727008232193,-1000.0,0.00012877,2]
[338884870,1727008232203,-1000.0,0.00012877,2]
[338884872,1727008232212,-1000.0,0.00012877,2]
[338884873,1727008232221,-1000.0,0.00012877,2]
[338884874,1727008232231,-1000.0,0.00012877,2]
[338884875,1727008232240,-1000.0,0.00012877,2]
[338884876,1727008232250,-1000.0,0.00012877,2]
[338884877,1727008232259,-1000.0,0.00012877,2]
[338884878,1727008232270,-1000.0,0.00012877,2]
[338884879,1727008232281,-1000.0,0.00012877,2]
[338884880,1727008232290,-382.641,0.00012877,2]
[338884881,1727008232302,-171.123,0.00012877,2]
[338884882,1727008232312,-150.0,0.00012885,2]
[338884883,1727008232322,-448.10487351,0.0001289,2]
[338884884,1727008232332,-5128.32545622,0.0001289,2]
[338884885,1727008232343,-500.0,0.00012895,2]
[338884886,1727008232353,-200.0,0.00012895,2]
[338884887,1727008232363,-448.10487349,0.00012895,2]
[338884888,1727008232375,-500.0,0.00012896,2]
[338884889,1727008232386,-500.0,0.00012896,2]
[338884890,1727008232398,-200.0,0.00012896,2]
[338884891,1727008232408,-196.6,0.000129,2]
[338884892,1727008232418,-1055.12729414,0.000129,2]
[338884893,1727008232428,-1620.4059,0.000129,2]
[338884894,1727008232439,-1800.0,0.000129,4]
[338884895,1727008232449,-167.95739396,0.000129,2]
[338884896,1727008232461,-164.93870189,0.000129,2]
[338884897,1727008232470,-169.00379342,0.000129,2]
[338884898,1727008232481,-448.10487349,0.000129,2]
[338884899,1727008232491,-198.54068962,0.000129,2]
[338884900,1727008232500,-486.1,0.000129,2]
[338884901,1727008232509,-197.45493291,0.00012902,2]
[338884902,1727008232518,-150.0,0.0001291,2]
[338884903,1727008232527,-150.0,0.00012913,2]
[338884904,1727008232537,-150.0,0.00012933,2]
[338884905,1727008232547,-150.0,0.00012938,2]
[338884906,1727008232556,-150.0,0.00012946,2]
[338884907,1727008232566,-3731.33539879,0.00012968,10]
[338884908,1727008232575,-529.97694791,0.00012973,2]
[338884909,1727008232584,-219.97300897,0.00012986,2]
[338884910,1727008232593,-245.31967874,0.00012986,2]
[338884911,1727008232602,-153.34,0.0001299,2]
[338884912,1727008232611,-153.34,0.0001299,2]
[338884913,1727008232621,-153.34,0.0001299,2]
[338884914,1727008232630,-153.34,0.0001299,2]
[338884915,1727008232639,-153.34,0.0001299,2]
[338884916,1727008232648,-153.34,0.0001299,2]
[338884917,1727008232657,-153.34,0.0001299,2]
[338884918,1727008232666,-153.34,0.0001299,2]
[338884919,1727008232675,-153.34,0.0001299,2]
[338884920,1727008232684,-153.34,0.0001299,2]
[338884921,1727008232693,-153.34,0.0001299,2]
[338884922,1727008232702,-153.34,0.0001299,2]
[338884923,1727008232712,-153.34,0.0001299,2]
[338884924,1727008232721,-153.34,0.0001299,2]
[338884925,1727008232730,-153.34,0.0001299,2]
[338884926,1727008232739,-153.34,0.0001299,2]
[338884927,1727008232749,-365.61065435,0.0001299,2]
[338884928,1727008232758,-365.61065435,0.0001299,2]
[338884929,1727008232767,-58647.25160346,0.00012993,2]
[338884930,1727008232777,-150.0,0.00012993,2]
[338884931,1727008232785,-253.14202511,0.00012996,2]
[338884932,1727008232794,-1969.9254777,0.00012996,2]
[338884933,1727008232804,-4810.6942304,0.00012996,2]
[338884934,1727008232813,-215.0678173,0.00012996,2]
[338884935,1727008232822,-5588.1022057,0.00012996,2]
[338884936,1727008232831,-209.82493842,0.00012998,2]
[338884937,1727008232840,-500.0,0.00012998,2]
[338884938,1727008232849,-500.0,0.00012998,2]
[338884939,1727008232858,-540.28,0.00012998,2]
[338884940,1727008232867,-500.0,0.00012998,2]
[338884941,1727008232877,-500.0,0.00012998,2]
[338884942,1727008232887,-1000.0,0.00012999,2]
[338884943,1727008232896,-1000.0,0.00012999,2]
[338884944,1727008232905,-1000.0,0.00012999,2]
[338884945,1727008232914,-1076.0,0.00012999,2]
[338884946,1727008232924,-500.0,0.00012999,2]
[338884947,1727008232933,-500.0,0.00012999,2]
[338884948,1727008232942,-207.48113737,0.00012999,2]
[338884949,1727008233140,-300.02,0.00012999,2]
[338884950,1727008233151,-4202.83292256,0.00012999,2]
[338884951,1727008233160,-500.0,0.00012999,2]
[338884952,1727008233170,-500.0,0.00012999,2]
[338884953,1727008233180,-500.0,0.00012999,2]
[338884954,1727008233190,-500.0,0.00012999,2]
[338884955,1727008233199,-500.0,0.00012999,2]
[338884956,1727008233213,-232.49904959,0.00012999,2]
[338884957,1727008233224,-500.0,0.00012999,2]
[338884958,1727008233234,-500.0,0.00012999,2]
[338884959,1727008233244,-500.0,0.00012999,2]
[338884960,1727008233254,-500.0,0.00012999,2]
[338884961,1727008233263,-500.0,0.00012999,2]
[338884962,1727008233273,-414.04,0.00012999,2]
[338884963,1727008233283,-500.0,0.00012999,2]
[338884964,1727008233293,-309.0806946,0.00012999,2]
[338884965,1727008233302,-500.0,0.00012999,2]
[338884966,1727008233312,-303.59,0.00012999,2]
[338884967,1727008233322,-1670.094495,0.00012999,2]
[338884968,1727008233331,-1670.094495,0.00012999,2]
[338884969,1727008233342,-500.0,0.00012999,2]
[338884970,1727008233351,-196.72,0.00012999,2]
[338884971,1727008233361,-219.14766,0.00012999,2]
[338884972,1727008233370,-151.0,0.00012999,2]
[338884973,1727008233380,-153.750132,0.00012999,2]
[338884974,1727008233390,-197.925722,0.00012999,2]
[338884975,1727008233399,-197.925722,0.00012999,2]
[338884976,1727008233409,-692.438989,0.00012999,2]
[338884977,1727008233419,-692.438989,0.00012999,2]
[338884978,1727008233428,-189.161249,0.00012999,2]
[338884979,1727008233438,-189.161249,0.00012999,2]
[338884980,1727008233447,-338.939312,0.00012999,2]
[338884981,1727008233457,-338.939312,0.00012999,2]
[338884982,1727008233467,-151.0,0.00012999,2]
[338884983,1727008233477,-151.0,0.00012999,2]
[338884984,1727008233486,-151.0,0.00012999,2]
[338884985,1727008233496,-428.396549,0.00012999,2]
[338884986,1727008233506,-428.396549,0.00012999,2]
[338884987,1727008233515,-510.0,0.00013,2]
[338884988,1727008233525,-460278.89004596,0.00013,2]
[338884989,1727008233535,-197335.07247249,0.00013,2]
[338884990,1727008233553,-797.175,0.00013,2]
[338884991,1727008233564,-689.30241408,0.00013,2]
[338884992,1727008235999,152.43,0.00010959,2]
[338884993,1727008237572,-504.68138467,0.00012999,2]
[338884994,1727008237585,-3698.15153788,0.00012999,2]
[338884995,1727008237594,-151.0,0.00012999,2]
[338884997,1727008237604,-3958.34065126,0.00013,2]
[338884998,1727008237615,-7136.03436277,0.00013,2]
[338884999,1727008237626,-987.54270914,0.00013,2]
[338885000,1727008237735,-1018.81330539,0.00013,2]
[338885001,1727008237747,-485.28526725,0.00013,2]
[338885002,1727008237759,-460.89263148,0.00013,2]
[338885003,1727008237770,-362.78211077,0.00013,2]
[338885004,1727008237781,-14103.48224663,0.00013,2]
[338885005,1727008237802,-4723.52338797,0.00013,2]
[338885021,1727008238152,-28686.90924801,0.00013,2]
[338885022,1727008238163,-903.83149778,0.00013,2]
[338885023,1727008238182,-2243.65255685,0.00013,2]
[338885024,1727008238193,-279.62,0.00013,2]
[338885025,1727008238203,-688.5,0.00013,2]
[338885026,1727008238219,-1285.31830318,0.00013,2]
[338885027,1727008238231,-77267.52999528,0.00013,2]
[338885028,1727008238240,-10542.95,0.00013,2]
[338885029,1727008238250,-102849.67341779,0.00013,2]
[338885036,1727008239563,-2809.89847193,0.00013,2]
[338885037,1727008239619,-314.66587,0.00013,2]
[338885038,1727008239631,-362.92252113,0.00013,2]
[338885039,1727008239730,-521.59343028,0.00013,2]
[338885040,1727008239790,-918.49166421,0.00013,2]
[338885041,1727008239801,-505.66665384,0.00013,2]
[338885042,1727008239813,-535.41900002,0.00013,2]
[338885043,1727008239847,-453.16590618,0.00013,2]
[338885044,1727008239859,-93995.86695843,0.00013,2]
[338885053,1727008242583,-1058357.07421433,0.00013,2]
[338885054,1727008242708,-0.00013377,0.00013,2]
[338885055,1727008242720,-7536.83358186,0.00013,2]
[338885061,1727008245477,-16819.01520418,0.00013,2]
[338885062,1727008245487,-7705.96318614,0.00013,2]
[338885063,1727008245710,-5046.86237445,0.00013,2]
[338885066,1727008256209,500.0,9.664e-05,2]
[338885067,1727008258085,500.0,0.00011034,2]
[338885068,1727008402929,500.97,0.00010134,2]
[338885072,1727008509889,23900.0,0.00011981,2]
[338885073,1727008567888,500.0,9.664e-05,2]
[338885074,1727008574033,243.12,0.00011952,2]
[338885075,1727008668466,655.68,0.00011943,2]
[338885076,1727008766741,1014.43,0.00011948,2]
[338885078,1727008984067,150.0,0.00010005,2]
[338885079,1727008984093,150.0,0.00010005,2]
[338885080,1727008984118,150.0,0.00010005,2]
[338885081,1727008984142,56.82,0.00010005,2]
[338885082,1727009074431,150.0,9.664e-05,2]
[338885083,1727009081333,15.61,0.00011844,2]
[338885084,1727009081357,234.39,0.00011844,2]
[338885085,1727009104471,15.61,0.00011688,2]
[338885086,1727009104509,134.39,0.00011688,2]
[338885087,1727009114584,15.61,0.00011688,2]
[338885088,1727009114608,134.39,0.00011688,2]
[338885089,1727009173094,250.0,0.00011919,2]
[338885090,1727009184335,168.64,0.00011922,2]
[338885091,1727009220796,475.45,0.00011922,2]
[338885098,1727009343433,500.0,9.664e-05,2]
[338885122,1727009431726,-506.82,0.00012269,2]
[338885123,1727009431737,-150.0,0.00012337,2]
[338885124,1727009431747,-300.0,0.000124,4]
[338885125,1727009431757,-500.0,0.00012404,2]
[338885126,1727009431766,-43.9781108,0.00012459,2]
[338885127,1727009431777,-303.4456781,0.00012459,2]
[338885128,1727009431788,-2900.0,0.00012459,2]
[338885129,1727009431801,-754.7440111,0.00012459,2]
[338885130,1727009431810,-600.0,0.000125,4]
[338885131,1727009431819,-1000.0,0.000126,4]
[338885132,1727009431828,-1506.5,0.000126,2]
[338885133,1727009431837,-1300.0,0.000127,4]
[338885134,1727009431846,-1720.0,0.000127,2]
[338885135,1727009431855,-7235.86,0.000127,2]
[338885136,1727009431864,-1758.8959889,0.000127,2]
[338885137,1727009431875,-807.52,0.000127,2]
[338885138,1727009431886,-369.4740111,0.000127,2]
[338885139,1727009431895,-150.0,0.00012753,2]
[338885140,1727009431904,-150.0,0.00012773,2]
[338885141,1727009431914,-208.1099889,0.000128,4]
[338885142,1727009431925,-814.17,0.000128,4]
[338885143,1727009431936,-677.7200111,0.000128,4]
[338885144,1727009431946,-175.5238322,0.00012816,2]
[338885145,1727009431955,-150.99,0.00012816,2]
[338885147,1727009431964,-301.55060002,0.00012819,2]
[338885148,1727009431974,-150.0,0.00012826,2]
[338885150,1727009431984,-150.0,0.00012831,2]
[338885151,1727009431993,-150.0,0.00012838,2]
[338885152,1727009432002,-150.0,0.00012841,2]
[338885153,1727009432011,-150.0,0.00012845,2]
[338885154,1727009432020,-393.76,0.00012849,2]